Workbook

Sheet Лист1
B1: МЕНЮ
B2: Для обучащихся 1-4 классов общеобразовательных организаций Республики Татарстан (март 2021)
B4: № рец. | C4: Наименование блюд | G4: Выход | H4: Цена | I4: Белки, г | J4: Жиры, г | L4: Углеводы, г | N4: Калорийность, ккал | P4: Витамин B1, мг | Q4: Витамин С, мг | R4: Витамин А, мг | U4: Витамин Е, мг | W4: Ca, мг | X4: P, мг | Y4: Mg, мг | Z4: Fe, мг
B5: 2 НЕДЕЛЯ
B6: Понедельник 2 неделя
B7: № 338 Дели 2015 г | C7: ПЛОДЫ И ЯГОДЫ СВЕЖИЕ (ЯБЛОКИ) | G7: 120 | I7: 0.480 | J7: 0.480 | L7: 11.760 | N7: 56 | P7: 0.036 | Q7: 12.000 | R7: - | U7: 0.240 | W7: 19.200 | X7: 13.200 | Y7: 10.800 | Z7: 2.640
B8: №47/2015г,Дели | C8: САЛАТ ИЗ КВАШЕНОЙ КАПУСТЫ (без лука) | G8: 80 | I8: 1.310 | J8: 4.069 | L8: 6.176 | N8: 69 | P8: 0.015 | Q8: 21.839 | R8: - | U8: 1.833 | W8: 35.063 | X8: 22.647 | Y8: 11.648 | Z8: 0.449
B9: ТТК от 2020г | C9: КОТЛЕТЫ "ПОЖАРСКИЕ" (из п/ф) | G9: 95г | I9: 9.056 | J9: 9.323 | L9: 10.128 | N9: 149 | P9: 0.065 | Q9: 1.461 | R9: - | U9: 1.438 | W9: 17.195 | X9: 132.782 | Y9: 17.655 | Z9: 1.972
B10: № 332,516 сбор.2004г | C10: МАКАРОНЫ ОТВАРНЫЕ С МАСЛОМ | G10: 150/5 | I10: 5.684 | J10: 6.093 | L10: 20.988 | N10: 165 | P10: 0.088 | Q10: - | R10: 41.000 | U10: 0.866 | W10: 17.657 | X10: 48.509 | Y10: 8.479 | Z10: 0.879
B11: № 685 Сбор. рецеп. 2004 г | C11: ЧАЙ С САХАРОМ 200/15 г | G11: 200/15 | I11: 0.210 | J11: 0.050 | L11: 15.020 | N11: 61 | P11: - | Q11: - | R11: - | U11: - | W11: 0.450 | X11: - | Y11: - | Z11: 0.045
C12: ХЛЕБ БЕЛЫЙ 1 сорт | G12: 30 | I12: 2.280 | J12: 0.240 | L12: 14.760 | N12: 71 | P12: 0.033 | Q12: - | R12: - | U12: 0.330 | W12: 6.000 | X12: 19.500 | Y12: 4.200 | Z12: 0.330
C13: ХЛЕБ РЖАНО-ПШЕНИЧНЫЙ | G13: 20 | I13: 1.000 | J13: 0.200 | L13: 9.000 | N13: 44 | P13: 0.014 | Q13: - | R13: - | U13: 0.108 | W13: 2.760 | X13: 12.720 | Y13: 3.000 | Z13: 0.372
B14: Итого: | H14: 0.00 | I14: =I13+I12+I11+I10+I9+I8+I7 -> 20.020 | J14: =J13+J12+J11+J10+J9+J8+J7 -> 20.455 | L14: =L13+L12+L11+L10+L9+L8+L7 -> 87.832 | N14: =N13+N12+N11+N10+N9+N8+N7 -> 615 | P14: 0.251 | Q14: 35.3 | R14: 41 | U14: 4.815 | W14: 98.325 | X14: 249.358 | Y14: 55.782 | Z14: 6.687
B15: Вторник 2 неделя
B16: №54/2017г,Дели | C16: САЛАТ ИЗ СВЕКЛЫ С ЯБЛОКАМИ | G16: 80г | I16: 0.884 | J16: 4.929 | L16: 9.071 | N16: 85 | P16: 0.017 | Q16: 7.359 | R16: - | U16: 2.206 | W16: 23.103 | X16: 25.343 | Y16: 13.591 | Z16: 1.197
B17: ТТК 2020 г | C17: ЁЖИКИ МЯСНЫЕ С РИСОМ п/ф В СОУСЕ ТОМАТНОМ | G17: 60/40 | I17: 10.786 | J17: 10.424 | L17: 9.228 | N17: 141 | P17: 0.048 | Q17: 2.513 | R17: - | U17: 2.093 | W17: 12.748 | X17: 107.314 | Y17: 18.145 | Z17: 1.528
B18: №312/2015г,Дели | C18: ПЮРЕ КАРТОФЕЛЬНОЕ | G18: 150 | I18: 3.282 | J18: 4.657 | L18: 22.027 | N18: 146 | P18: 0.163 | Q18: 25.943 | R18: 25.500 | U18: 0.181 | W18: 46.606 | X18: 97.336 | Y18: 32.978 | Z18: 1.231
B19: ТТК | C19: КОМПОТ ИЗ ЗАМОРОЖЕННОЙ ВИШНИ | G19: 200 | I19: 0.200 | J19: 0.050 | L19: 23.802 | N19: 109 | P19: 0.008 | Q19: 3.750 | R19: - | U19: 0.075 | W19: 9.970 | X19: 7.500 | Y19: 6.500 | Z19: 0.197
C20: ХЛЕБ БЕЛЫЙ 1 сорт | G20: 30 | I20: 2.280 | J20: 0.240 | L20: 14.760 | N20: 71 | P20: 0.033 | Q20: - | R20: - | U20: 0.330 | W20: 6.000 | X20: 19.500 | Y20: 4.200 | Z20: 0.330
C21: ХЛЕБ РЖАНО-ПШЕНИЧНЫЙ | G21: 20 | I21: 1.000 | J21: 0.200 | L21: 9.000 | N21: 44 | P21: 0.014 | Q21: - | R21: - | U21: 0.108 | W21: 2.760 | X21: 12.720 | Y21: 3.000 | Z21: 0.372
B22: Итого: | H22: 0.00 | I22: =I21+I20+I19+I18+I17+I16 -> 18.432 | J22: =J21+J20+J19+J18+J17+J16 -> 20.5 | L22: =L21+L20+L19+L18+L17+L16 -> 87.888 | N22: =N21+N20+N19+N18+N17+N16 -> 596 | P22: 0.283 | Q22: 39.565 | R22: 25.5 | U22: 4.993 | W22: 101.187 | X22: 269.713 | Y22: 78.414 | Z22: 4.855
B23: СРЕДА 2 НЕДЕЛЯ
B24: № 338 Дели 2015 г | C24: ПЛОДЫ И ЯГОДЫ СВЕЖИЕ (ЯБЛОКИ) | G24: 120 | I24: 0.480 | J24: 0.480 | L24: 11.760 | N24: 56 | P24: 0.036 | Q24: 12.000 | R24: - | U24: 0.240 | W24: 19.200 | X24: 13.200 | Y24: 10.800 | Z24: 2.640
B25: №70/2015г,Дели | C25: ОВОЩИ НАТУРАЛЬНЫЕ СОЛЕНЫЕ | G25: 60 | I25: 0.480 | J25: 0.060 | L25: 1.020 | N25: 8 | P25: 0.012 | Q25: 3.000 | R25: - | U25: 0.060 | W25: 13.800 | X25: 14.400 | Y25: 8.400 | Z25: 0.360
B26: ТТК (Прик №421 от 25.12.2013) | C26: ФРИКАССЕ ИЗ КУРИНЫХ ГРУДОК | G26: 50/50 | I26: 11.636 | J26: 10.572 | L26: 4.103 | N26: 194 | P26: 0.094 | Q26: 5.100 | R26: 38.000 | U26: 3.944 | W26: 22.468 | X26: 140.823 | Y26: 27.412 | Z26: 1.323
B27: №304/2015г,Дели | C27: РИС ОТВАРНОЙ С МАСЛОМ | G27: 150/5 | I27: 3.874 | J27: 9.059 | L27: 31.054 | N27: 178 | P27: 0.044 | Q27: - | R27: 47.000 | U27: 0.334 | W27: 18.180 | X27: 86.775 | Y27: 27.660 | Z27: 0.651
B28: № 686 2004 г, №377 Дели 2015 | C28: ЧАЙ С ЛИМОНОМ | G28: 200/15/7 | I28: 0.273 | J28: 0.057 | L28: 15.230 | N28: 63 | P28: 0.003 | Q28: 2.800 | R28: - | U28: 0.014 | W28: 3.250 | X28: 1.540 | Y28: 0.840 | Z28: 0.087
C29: ХЛЕБ РЖАНО-ПШЕНИЧНЫЙ | G29: 20 | I29: 1.000 | J29: 0.200 | L29: 9.000 | N29: 44 | P29: 0.014 | Q29: - | R29: - | U29: 0.108 | W29: 2.760 | X29: 12.720 | Y29: 3.000 | Z29: 0.372
C30: ХЛЕБ БЕЛЫЙ 1 сорт | G30: 30 | I30: 2.280 | J30: 0.240 | L30: 14.760 | N30: 71 | P30: 0.033 | Q30: - | R30: - | U30: 0.330 | W30: 6.000 | X30: 19.500 | Y30: 4.200 | Z30: 0.330
B31: Итого: | H31: 0.00 | I31: =I30+I29+I28+I27+I26+I25+I24 -> 20.023 | J31: =J30+J29+J28+J27+J26+J25+J24 -> 20.668 | L31: =L30+L29+L28+L27+L26+L25+L24 -> 86.927 | N31: =N30+N29+N28+N27+N26+N25+N24 -> 614 | P31: 0.236 | Q31: 22.9 | R31: 85 | U31: 5.03 | W31: 85.658 | X31: 288.958 | Y31: 82.312 | Z31: 5.763
B32: Четверг 2 неделя
B33: ттк | C33: ИКРА КАБАЧКОВАЯ | G33: 80 | I33: 1.520 | J33: 7.120 | L33: 6.160 | N33: 95 | P33: 0.016 | Q33: 5.600 | R33: - | U33: 2.480 | W33: 32.800 | X33: 29.600 | Y33: 12.000 | Z33: 0.560
B34: ТТК от 2020 г | C34: ГРУДКА КУРИНАЯ В СЛИВОЧНОМ СОУСЕ | G34: 60/30 | I34: 10.407 | J34: 9.054 | L34: 2.806 | N34: 142 | P34: 0.094 | Q34: 4.878 | R34: 35.780 | U34: 1.237 | W34: 18.026 | X34: 156.038 | Y34: 22.577 | Z34: 1.433
B35: №302/2015г,Дели | C35: КАША РАССЫПЧАТАЯ (ГРЕЧНЕВА) | G35: 150 | I35: 4.622 | J35: 3.399 | L35: 30.875 | N35: 154 | P35: 0.291 | Q35: - | R35: 21.000 | U35: 0.468 | W35: 20.632 | X35: 177.928 | Y35: 104.220 | Z35: 3.448
B36: ТТК | C36: КОМПОТ ИЗ СМЕСИ СУХОФРУКТОВ | G36: 200 | I36: 0.160 | J36: 0.300 | L36: 23.120 | N36: 109 | P36: 0.002 | Q36: 0.8 | R36: - | U36: 0.2 | W36: 5.840 | X36: 46.000 | Y36: 33.000 | Z36: 0.960
C37: ХЛЕБ БЕЛЫЙ 1 сорт | G37: 30 | I37: 2.280 | J37: 0.240 | L37: 14.760 | N37: 71 | P37: 0.033 | Q37: - | R37: - | U37: 0.330 | W37: 6.000 | X37: 19.500 | Y37: 4.200 | Z37: 0.330
C38: ХЛЕБ РЖАНО-ПШЕНИЧНЫЙ | G38: 20 | I38: 1.000 | J38: 0.200 | L38: 9.000 | N38: 44 | P38: 0.014 | Q38: - | R38: - | U38: 0.108 | W38: 2.760 | X38: 12.720 | Y38: 3.000 | Z38: 0.372
B39: Итого: | H39: 0.00 | I39: =I38+I37+I36+I35+I34+I33 -> 19.989 | J39: =J38+J37+J36+J35+J34+J33 -> 20.313 | L39: =L38+L37+L36+L35+L34+L33 -> 86.721 | N39: =N38+N37+N36+N35+N34+N33 -> 615 | P39: 0.453 | Q39: 10.478 | R39: 56.78 | U39: 4.623 | W39: 84.438 | X39: 398.536 | Y39: 149.747 | Z39: 6.365
B40: Пятница 2 неделя
B41: № 338 Дели 2015 г | C41: ПЛОДЫ И ЯГОДЫ СВЕЖИЕ (ЯБЛОКИ) | G41: 120 | I41: 0.480 | J41: 0.480 | L41: 11.760 | N41: 56 | P41: 0.036 | Q41: 12.000 | R41: - | U41: 0.240 | W41: 19.200 | X41: 13.200 | Y41: 10.800 | Z41: 2.640
B42: №52/2015г,Дели | C42: САЛАТ ИЗ СВЕКЛЫ ОТВАРНОЙ (с маслом) | G42: 80 | I42: 1.140 | J42: 4.871 | L42: 6.688 | N42: 75 | P42: 0.015 | Q42: 7.600 | R42: - | U42: 2.188 | W42: 28.120 | X42: 32.776 | Y42: 16.720 | Z42: 1.064
B43: №284/2015г,Дели | C43: ЗАПЕКАНКА КАРТОФЕЛЬНАЯ С МЯСОМ | G43: 180 | I43: 14.118 | J43: 14.920 | L43: 22.045 | N43: 242 | P43: 0.239 | Q43: 29.314 | R43: 5.120 | U43: 3.973 | W43: 33.404 | X43: 280.832 | Y43: 56.713 | Z43: 4.158
B44: №348/2015г,Дели | C44: КОМПОТ ИЗ ПЛОДОВ ИЛИ ЯГОД СУШЕНЫХ (КУРАГА) | G44: 200 | I44: 1.000 | J44: 0.08 | L44: 23.560 | N44: 128 | P44: 0.020 | Q44: 0.8 | U44: 1.100 | W44: 33.800 | X44: 30.400 | Y44: 21.800 | Z44: 0.700
C45: ХЛЕБ РЖАНО-ПШЕНИЧНЫЙ | G45: 20 | I45: 1.000 | J45: 0.200 | L45: 9.000 | N45: 44 | P45: 0.014 | Q45: - | R45: - | U45: 0.108 | W45: 2.760 | X45: 12.720 | Y45: 3.000 | Z45: 0.372
C46: ХЛЕБ БЕЛЫЙ 1 сорт | G46: 30 | I46: 2.280 | J46: 0.240 | L46: 14.760 | N46: 71 | P46: 0.033 | Q46: - | R46: - | U46: 0.330 | W46: 6.000 | X46: 19.500 | Y46: 4.200 | Z46: 0.330
B47: Итого: | H47: 0.00 | I47: =I46+I45+I44+I43+I42+I41 -> 20.018 | J47: =J46+J45+J44+J43+J42+J41 -> 20.791 | L47: =L46+L45+L44+L43+L42+L41 -> 87.813 | N47: =N46+N45+N44+N43+N42+N41 -> 616 | P47: 0.637 | Q47: 48.914 | R47: 5.3 | U47: 9.839 | W47: 290.084 | X47: 519.028 | Y47: 171.433 | Z47: 12.224
B48: Суббота 2 неделя
B49: №47/2015г,Дели | C49: САЛАТ ИЗ КВАШЕНОЙ КАПУСТЫ (без лука) | G49: 80 | I49: 1.310 | J49: 4.069 | L49: 6.176 | N49: 69 | P49: 0.015 | Q49: 21.839 | R49: - | U49: 1.833 | W49: 35.063 | X49: 22.647 | Y49: 11.648 | Z49: 0.449
B50: №243/2015г,Дели | C50: СОСИСКИ ОТВАРНЫЕ | G50: 100 | I50: 9.100 | J50: 9.894 | L50: 4.800 | N50: 164 | P50: 0.030 | Q50: - | R50: - | U50: 0.500 | W50: 25.000 | X50: 139.001 | Y50: 15.000 | Z50: 1.800
B51: № 332,516 сбор.2004г | C51: МАКАРОНЫЕ ИЗДЕЛИЯ ОТВАРНЫЕ С МАСЛОМ | G51: 150/5 | I51: 5.684 | J51: 6.093 | L51: 20.988 | N51: 165 | P51: 0.088 | Q51: - | R51: 41.000 | U51: 0.866 | W51: 17.657 | X51: 48.509 | Y51: 8.479 | Z51: 0.879
B52: ТТК | C52: КОМПОТ ИЗ ЗАМОРОЖЕННОЙ ЧЕРНОЙ СМОРОДИНЫ | G52: 200 | I52: 0.150 | J52: 0.100 | L52: 25.777 | N52: 96 | P52: 0.008 | Q52: 50.000 | R52: - | U52: 0.175 | W52: 9.720 | X52: 8.250 | Y52: 7.750 | Z52: 0.397
C53: ХЛЕБ РЖАНО-ПШЕНИЧНЫЙ | G53: 20 | I53: 1.000 | J53: 0.200 | L53: 9.000 | N53: 44 | P53: 0.014 | Q53: - | R53: - | U53: 0.108 | W53: 2.760 | X53: 12.720 | Y53: 3.000 | Z53: 0.372
C54: ХЛЕБ БЕЛЫЙ 1 сорт | G54: 30 | I54: 2.280 | J54: 0.240 | L54: 14.760 | N54: 71 | P54: 0.033 | Q54: - | R54: - | U54: 0.330 | W54: 6.000 | X54: 19.500 | Y54: 4.200 | Z54: 0.330
B55: Итого: | H55: 0.00 | I55: =I54+I53+I52+I51+I50+I49 -> 19.524 | J55: =J54+J53+J52+J51+J50+J49 -> 20.596 | L55: =L54+L53+L52+L51+L50+L49 -> 81.501 | N55: =N54+N53+N52+N51+N50+N49 -> 609 | P55: 0.188 | Q55: 71.839 | R55: 41 | U55: 3.812 | W55: 96.2 | X55: 250.627 | Y55: 50.077 | Z55: 4.227
